bitfinex-derivatives/quotes_BTCF0:USTF0_20241227
["timestamp","ask_amount","ask_price","bid_price","bid_amount"]
[1735339552402,0.12676074,94626.0,94621.0,0.01775876]
[1735339552705,0.12676074,94626.0,94623.0,0.001]
[1735339553710,0.12676074,94626.0,94620.0,0.18963664]
[1735339553902,0.12676074,94626.0,94625.0,0.052916]
[1735339555310,0.00158593,94628.0,94627.0,0.052915]
[1735339555505,0.00158593,94628.0,94627.0,0.413715]
[1735339556610,0.00158593,94628.0,94627.0,0.414715]
[1735339557015,0.00158593,94628.0,94627.0,0.60435164]
[1735339558115,0.00158593,94628.0,94627.0,0.414715]
[1735339558416,0.00158593,94628.0,94627.0,0.418715]
[1735339559114,0.00158593,94628.0,94627.0,0.421715]
[1735339559515,0.00158593,94628.0,94627.0,0.416715]
[1735339559716,0.00158593,94628.0,94627.0,0.421715]
[1735339561210,0.00158593,94628.0,94627.0,0.418715]
[1735339561411,0.00158593,94628.0,94627.0,0.421715]
[1735339562008,0.00158593,94628.0,94627.0,0.418715]
[1735339562217,0.00158593,94628.0,94627.0,0.419715]
[1735339562607,0.00158593,94628.0,94627.0,0.415715]
[1735339562812,0.00158593,94628.0,94627.0,0.418715]
[1735339567619,0.00158593,94628.0,94627.0,0.60835164]
[1735339570310,0.00158593,94628.0,94627.0,0.60935164]
[1735339571428,0.00158593,94628.0,94627.0,0.419715]
[1735339571619,0.15708406,94633.0,94627.0,0.3668]
[1735339571921,0.15708406,94633.0,94632.0,0.052912]
[1735339572613,0.18831995,94640.0,94636.0,0.05291]
[1735339572822,0.18831995,94640.0,94637.0,0.3608]
[1735339573524,0.18831995,94641.0,94637.0,0.413709]
[1735339573722,0.18831995,94641.0,94637.0,0.3608]
[1735339574027,0.052911,94634.0,94632.0,0.002]
[1735339574921,0.052911,94634.0,94627.0,0.55032364]
[1735339574922,0.05145394,94633.0,94627.0,0.55032364]
[1735339575316,0.05145394,94633.0,94632.0,0.001]
[1735339576614,0.05145394,94633.0,94627.0,0.3618]
[1735339576925,0.05145394,94633.0,94627.0,0.3628]
[1735339577112,0.0385,94632.0,94627.0,0.3628]
[1735339577515,0.0385,94632.0,94627.0,0.37720024]
[1735339578518,0.0385,94632.0,94627.0,0.37520024]
[1735339578921,0.05145394,94631.0,94627.0,0.37620024]
[1735339579433,0.05145394,94631.0,94627.0,0.01540024]
[1735339579818,0.05145394,94631.0,94627.0,0.01440024]
[1735339580019,0.05145394,94631.0,94625.0,0.18952364]
[1735339580431,0.18831995,94629.0,94623.0,0.052917]
[1735339580927,0.18831995,94629.0,94627.0,0.001]
[1735339581530,0.18831995,94628.0,94627.0,0.001]
[1735339581829,0.18831995,94628.0,94624.0,0.052917]
[1735339582524,0.18831995,94628.0,94625.0,0.052916]
[1735339583129,0.18831995,94629.0,94625.0,0.052916]
[1735339583521,0.18831995,94629.0,94627.0,0.001]
[1735339584127,0.18831995,94630.0,94627.0,0.001]
[1735339584431,0.18831995,94630.0,94626.0,0.052916]
[1735339585329,0.05145394,94631.0,94626.0,0.052916]
[1735339585330,0.23977389,94631.0,94626.0,0.052916]
[1735339586232,0.23977389,94631.0,94627.0,0.001]
[1735339586633,0.18831995,94630.0,94627.0,0.001]
[1735339586834,0.18831995,94630.0,94626.0,0.052916]
[1735339587133,0.18831995,94630.0,94626.0,0.053916]
[1735339587626,0.18831995,94630.0,94620.0,0.07050968]
[1735339587627,0.18831995,94630.0,94627.0,0.052915]
[1735339587934,0.18831995,94630.0,94627.0,0.053915]
[1735339588232,0.05145394,94631.0,94627.0,0.053915]
[1735339588634,0.05145394,94631.0,94627.0,0.001]
[1735339588934,0.05145394,94631.0,94629.0,0.052914]
[1735339590836,0.05145394,94631.0,94630.0,0.052914]
[1735339598649,0.05145394,94631.0,94630.0,0.06702813]
[1735339602647,0.23977389,94631.0,94630.0,0.06702813]
[1735339605253,0.05145394,94631.0,94630.0,0.06702813]
[1735339606349,0.23977389,94631.0,94630.0,0.06702813]
[1735339607649,0.60057389,94631.0,94630.0,0.06702813]
[1735339611254,0.41225394,94631.0,94630.0,0.06702813]
[1735339611659,0.41225394,94631.0,94630.0,0.01411413]
[1735339611858,0.41225394,94631.0,94622.0,0.0414]
[1735339612053,0.41225394,94631.0,94630.0,0.052914]
[1735339618964,0.41225394,94631.0,94630.0,0.05406227]
[1735339626867,0.60277531,94631.0,94630.0,0.05406227]
[1735339627968,0.41225394,94631.0,94630.0,0.05406227]
[1735339637671,0.60276577,94631.0,94630.0,0.05406227]
[1735339638571,0.24196577,94631.0,94630.0,0.05406227]
[1735339638881,0.05145394,94631.0,94630.0,0.05406227]
[1735339639868,0.052909,94639.0,94630.0,0.05406227]
[1735339639869,0.19051183,94634.0,94630.0,0.05406227]
[1735339640169,0.19051183,94634.0,94632.0,0.00114827]
[1735339641079,0.19051183,94634.0,94633.0,0.00114827]
[1735339641783,0.19051183,94636.0,94633.0,0.00114827]
[1735339642176,0.19051183,94636.0,94634.0,0.00114827]
[1735339642778,0.19051183,94637.0,94634.0,0.00114827]
[1735339643178,0.19051183,94637.0,94635.0,0.00114827]
[1735339643584,0.19051183,94637.0,94636.0,0.05291]
[1735339643778,0.19051183,94637.0,94636.0,0.09701]
[1735339644189,0.19051183,94637.0,94636.0,0.09815827]
[1735339645789,0.12688595,94637.0,94636.0,0.28768191]
[1735339647289,0.12688595,94643.0,94641.0,0.052907]
[1735339648295,0.12688595,94643.0,94642.0,0.00114827]
[1735339648898,0.15860743,94648.0,94642.0,0.00114827]
[1735339649396,0.15860743,94648.0,94645.0,0.00114827]
[1735339649999,0.15860743,94649.0,94645.0,0.00114827]
[1735339650197,0.15860743,94649.0,94647.0,0.00114827]
[1735339651296,0.15860743,94650.0,94648.0,0.00114827]
[1735339652398,0.15860743,94650.0,94649.0,0.00114827]
[1735339654194,0.15860743,94651.0,94649.0,0.00214827]
[1735339654391,0.15860743,94651.0,94650.0,0.00114827]
[1735339656498,0.052902,94652.0,94650.0,0.00114827]
[1735339656702,0.052902,94652.0,94650.0,0.00214827]
[1735339657405,0.052902,94652.0,94651.0,0.00114827]
[1735339659704,0.052902,94652.0,94651.0,0.00214827]
[1735339665409,0.21150943,94652.0,94651.0,0.00214827]
[1735339667905,0.052902,94652.0,94651.0,0.00214827]
[1735339670515,0.10434888,94652.0,94651.0,0.00214827]
[1735339678316,0.05144688,94652.0,94651.0,0.05347221]
[1735339680517,0.3608,94654.0,94651.0,0.05347221]
[1735339680518,0.05144688,94653.0,94651.0,0.05347221]
[1735339682120,0.05244688,94653.0,94651.0,0.053902]
[1735339683220,0.05144688,94652.0,94651.0,0.053902]
[1735339685214,0.05244688,94652.0,94651.0,0.053902]
[1735339685719,0.001,94652.0,94651.0,0.053902]
[1735339688121,0.05244337,94652.0,94651.0,0.053902]
[1735339689619,0.001,94652.0,94651.0,0.053902]
[1735339690833,0.15961566,94652.0,94651.0,0.053902]
[1735339692930,0.3608,94661.0,94651.0,0.053902]
[1735339692931,0.15861566,94653.0,94651.0,0.053902]
[1735339693135,0.15861566,94653.0,94652.0,0.0443]
[1735339693726,0.15861566,94653.0,94651.0,0.053902]
[1735339693727,0.15861566,94653.0,94651.0,0.001]
[1735339694321,0.052899,94657.0,94651.0,0.19012576]
[1735339695429,0.15861566,94656.0,94651.0,0.001]
[1735339695829,0.15861566,94656.0,94652.0,0.001]
[1735339696429,0.0529,94654.0,94651.0,0.001]
[1735339696734,0.0529,94654.0,94652.0,0.18912576]
[1735339696928,0.0529,94654.0,94652.0,0.19012576]
[1735339697530,0.0529,94654.0,94652.0,0.18912576]
[1735339698235,0.0529,94654.0,94651.0,0.001]
[1735339698236,0.052901,94652.0,94651.0,0.19012576]
[1735339698436,0.413701,94652.0,94651.0,0.19012576]
[1735339699438,0.413701,94652.0,94651.0,0.18912576]
[1735339699625,0.41224861,94652.0,94647.0,0.01331442]
[1735339699820,0.41224861,94652.0,94637.0,0.18912576]
[1735339700025,0.052905,94646.0,94637.0,0.18912576]
[1735339700421,0.052906,94645.0,94637.0,0.18912576]
[1735339700922,0.052906,94644.0,94637.0,0.20131249]
[1735339701328,0.3608,94642.0,94637.0,0.20131249]
[1735339702946,0.05144861,94641.0,94637.0,0.01218673]
[1735339703135,0.0388,94640.0,94634.0,0.052911]
[1735339704343,0.15844813,94637.0,94634.0,0.06497124]
[1735339706543,0.15844813,94639.0,94634.0,0.06497124]
[1735339708045,0.19724813,94640.0,94634.0,0.06497124]
[1735339709336,0.12666002,94635.0,94634.0,0.06497124]
[1735339710643,0.12666002,94637.0,94635.0,0.052911]
[1735339714445,0.0388,94640.0,94625.0,0.01581931]
[1735339714446,0.12666002,94638.0,94625.0,0.01581931]
[1735339714649,0.12666002,94638.0,94637.0,0.05291]
[1735339717138,0.12666002,94639.0,94637.0,0.05291]
[1735339718650,0.16546002,94640.0,94639.0,0.052909]
[1735339719951,0.0388,94640.0,94639.0,0.052909]
[1735339720350,0.0388,94640.0,94639.0,0.053909]
[1735339724352,0.51924813,94642.0,94640.0,0.052908]
[1735339725148,0.15844813,94641.0,94640.0,0.052908]
[1735339726055,0.05145347,94641.0,94640.0,0.053908]
[1735339728553,0.05145347,94641.0,94640.0,0.06630297]
[1735339728754,0.05145347,94641.0,94640.0,0.01339497]
[1735339728963,0.05145347,94641.0,94640.0,0.001]
[1735339729259,0.05145347,94641.0,94637.0,0.052909]
[1735339729447,0.05145347,94641.0,94640.0,0.001]
[1735339730461,0.05145347,94641.0,94638.0,0.052909]
[1735339731260,0.05145347,94641.0,94637.0,0.001]
[1735339731563,0.05145347,94641.0,94639.0,0.052908]
[1735339731956,0.05145347,94641.0,94640.0,0.001]
[1735339732661,0.05145347,94641.0,94639.0,0.052908]
[1735339733757,0.05145347,94641.0,94640.0,0.001]
[1735339735755,0.05145347,94641.0,94639.0,0.053908]
[1735339735957,0.05145347,94641.0,94639.0,0.06630646]
[1735339736358,0.05145347,94641.0,94640.0,0.001]
[1735339736958,0.05145347,94641.0,94639.0,0.06530646]
[1735339737158,0.05145347,94641.0,94639.0,0.06630646]
[1735339739056,0.05145347,94641.0,94639.0,0.06530646]
[1735339739256,0.05145347,94641.0,94640.0,0.001]
[1735339739556,0.41225347,94641.0,94640.0,0.001]
[1735339739759,0.41225347,94641.0,94639.0,0.06530646]
[1735339739962,0.41225347,94641.0,94639.0,0.06630646]
[1735339740357,0.41225347,94641.0,94640.0,0.001]
[1735339740565,0.41225347,94641.0,94640.0,0.00026726]
[1735339741068,0.41225347,94641.0,94639.0,0.06530646]
[1735339741267,0.41225347,94641.0,94639.0,0.06630646]
[1735339742658,0.46516047,94641.0,94639.0,0.06530646]
[1735339742967,0.46616047,94641.0,94640.0,0.001]
[1735339743270,0.46616047,94641.0,94639.0,0.06530646]
[1735339743767,0.05145347,94640.0,94639.0,0.06530646]
[1735339745265,0.10436147,94640.0,94639.0,0.06530646]
[1735339746164,0.10536147,94640.0,94639.0,0.06530646]
[1735339750273,0.10536147,94640.0,94639.0,0.01239846]
[1735339750472,0.05245347,94640.0,94634.0,0.052911]
[1735339750770,0.052909,94639.0,94634.0,0.052911]
[1735339751962,0.19041508,94637.0,94634.0,0.052911]
[1735339752769,0.05291,94636.0,94629.0,0.052914]
[1735339752970,0.05291,94636.0,94627.0,0.18912576]
[1735339753167,0.05291,94636.0,94631.0,0.052913]
[1735339753575,0.19041508,94635.0,94631.0,0.052913]
[1735339753766,0.3608,94634.0,94631.0,0.052913]
[1735339754976,0.05145347,94633.0,94631.0,0.052913]
[1735339756273,0.05245347,94633.0,94631.0,0.052913]
[1735339757571,0.05145347,94632.0,94631.0,0.052913]
[1735339758169,0.05145347,94632.0,94627.0,0.01140908]
[1735339758367,0.05145347,94632.0,94625.0,0.24572099]
[1735339758578,0.05145347,94632.0,94626.0,0.18912576]
[1735339758877,0.05245347,94632.0,94626.0,0.18912576]
[1735339759376,0.05145347,94632.0,94626.0,0.18912576]
[1735339759575,0.05245347,94632.0,94626.0,0.18912576]
[1735339759976,0.05145347,94631.0,94628.0,0.18912576]
[1735339761272,0.052914,94629.0,94628.0,0.001]
[1735339762678,0.052916,94626.0,94625.0,0.20429962]
[1735339762974,0.052916,94626.0,94625.0,0.01517386]
[1735339764081,0.46516947,94626.0,94625.0,0.01517386]
[1735339765078,0.46616947,94626.0,94625.0,0.01517386]
[1735339765468,0.46516947,94626.0,94625.0,0.00038785]
[1735339765665,0.052923,94613.0,94612.0,0.22862576]
[1735339765877,0.413723,94613.0,94612.0,0.22862576]
[1735339766275,0.413723,94613.0,94612.0,0.18912576]
[1735339766580,0.46517647,94613.0,94612.0,0.01133025]
[1735339766781,0.46517647,94613.0,94612.0,0.01333025]
[1735339767087,0.46517647,94613.0,94612.0,0.002]
[1735339767476,0.46517647,94613.0,94611.0,0.0385]
[1735339767676,0.46517647,94613.0,94612.0,0.001]
[1735339767884,0.46517647,94613.0,94612.0,0.003]
[1735339768274,0.46517647,94613.0,94612.0,0.001]
[1735339768974,0.413723,94613.0,94612.0,0.001]
[1735339769175,0.413723,94613.0,94611.0,0.0405]
[1735339770082,0.57217378,94613.0,94612.0,0.001]
[1735339770785,0.57217378,94613.0,94580.0,0.052941]
[1735339770786,0.052932,94597.0,94588.0,0.0802]
[1735339771081,0.7216,94597.0,94594.0,0.18912576]
[1735339771284,0.052933,94595.0,94594.0,0.18912576]
[1735339772885,0.052936,94590.0,94589.0,0.25298956]
[1735339773079,0.052943,94578.0,94573.0,0.0778]
[1735339773278,0.052943,94578.0,94573.0,0.08958272]
[1735339773279,0.3608,94574.0,94573.0,0.08958272]
[1735339776086,0.413745,94574.0,94573.0,0.08958272]
[1735339776286,0.413745,94574.0,94573.0,0.01178272]
[1735339776585,0.413745,94574.0,94573.0,0.003]
[1735339777585,0.413745,94574.0,94573.0,0.008]
[1735339778087,0.453845,94574.0,94573.0,0.008]
[1735339778493,0.529745,94574.0,94573.0,0.008]
[1735339786292,0.052949,94566.0,94565.0,0.01181385]
[1735339786477,0.3608,94566.0,94558.0,0.0769]
[1735339786681,0.052953,94559.0,94558.0,0.0769]
[1735339787176,0.052965,94538.0,94521.0,0.25298956]
[1735339787491,0.046966,94537.0,94529.0,0.05297]
[1735339787687,0.037966,94537.0,94531.0,0.052969]
[1735339788287,0.028966,94537.0,94531.0,0.052969]
[1735339788793,0.3608,94538.0,94531.0,0.052969]
[1735339788794,0.3608,94538.0,94531.0,0.061969]
[1735339788983,0.052966,94536.0,94531.0,0.061969]
[1735339789388,0.052966,94536.0,94531.0,0.009]
[1735339789891,0.052966,94536.0,94531.0,0.017]
[1735339790490,0.052966,94536.0,94531.0,0.009]
[1735339790691,0.053966,94536.0,94531.0,0.017]
[1735339790886,0.052967,94535.0,94531.0,0.009]
[1735339791086,0.052967,94534.0,94531.0,0.009]
[1735339791990,0.052967,94534.0,94531.0,0.008]
[1735339792185,0.052967,94534.0,94531.0,0.01]
[1735339792885,0.053967,94534.0,94531.0,0.02067778]
[1735339793501,0.001,94534.0,94531.0,0.02067778]
[1735339793796,0.052968,94533.0,94531.0,0.02567778]
[1735339794890,0.053968,94533.0,94531.0,0.02567778]
[1735339795295,0.054968,94533.0,94531.0,0.02667778]
[1735339802288,0.052973,94523.0,94522.0,0.0752]
[1735339802488,0.413773,94523.0,94522.0,0.0752]
[1735339802786,0.413773,94523.0,94522.0,0.01161141]
[1735339802982,0.413773,94523.0,94516.0,0.0406]
[1735339803984,0.414773,94523.0,94516.0,0.0406]
[1735339804590,0.415773,94523.0,94522.0,0.009]
[1735339805598,0.415773,94523.0,94516.0,0.0496]
[1735339806193,0.415773,94523.0,94522.0,0.002]
[1735339807801,0.052975,94522.0,94516.0,0.0406]
[1735339808099,0.052975,94521.0,94516.0,0.0496]
[1735339808893,0.043975,94521.0,94516.0,0.0406]
[1735339810100,0.044975,94521.0,94516.0,0.0406]
[1735339810702,0.052975,94520.0,94515.0,0.01167047]
[1735339810899,0.052975,94520.0,94516.0,0.001]
[1735339811503,0.052975,94520.0,94514.0,0.052978]
[1735339811706,0.052975,94520.0,94516.0,0.001]
[1735339812409,0.052975,94520.0,94514.0,0.052978]
[1735339812910,0.3608,94515.0,94514.0,0.06486195]
[1735339814198,0.3608,94515.0,94514.0,0.06586195]
[1735339814903,0.45558255,94515.0,94514.0,0.06586195]
[1735339815801,0.3608,94515.0,94514.0,0.06586195]
[1735339818616,0.4559067,94515.0,94514.0,0.06586195]
[1735339819414,0.4559067,94515.0,94514.0,0.01288395]
[1735339820113,0.3608,94515.0,94514.0,0.01288395]
[1735339821916,0.3608,94515.0,94504.0,0.1147]
[1735339823006,0.3608,94515.0,94510.0,0.052981]
[1735339823208,0.0951067,94512.0,94510.0,0.052981]
[1735339825704,0.3618,94515.0,94510.0,0.052981]
[1735339825705,0.0951067,94511.0,94510.0,0.052981]
[1735339827010,0.001,94512.0,94510.0,0.052981]
[1735339827606,0.12637673,94513.0,94510.0,0.052981]
[1735339827920,0.001,94511.0,94510.0,0.052981]
[1735339829326,0.001,94512.0,94510.0,0.052981]
[1735339829916,0.15797092,94513.0,94510.0,0.052981]
[1735339829917,0.001,94511.0,94510.0,0.052981]
[1735339830513,0.001,94512.0,94510.0,0.052981]
[1735339830813,0.15797092,94511.0,94510.0,0.052981]
[1735339831208,0.15897092,94511.0,94510.0,0.052981]
[1735339832213,0.05252388,94511.0,94510.0,0.052981]
[1735339832607,0.05152388,94511.0,94510.0,0.052981]
[1735339833416,0.001,94511.0,94510.0,0.052981]
[1735339834921,0.05252388,94511.0,94510.0,0.052981]
[1735339835423,0.05252388,94511.0,94504.0,0.12647446]
[1735339835617,0.413783,94507.0,94504.0,0.17945846]
[1735339836813,0.413783,94507.0,94504.0,0.12647446]
[1735339837012,0.414783,94507.0,94504.0,0.12647446]
[1735339837220,0.15886092,94505.0,94504.0,0.12647446]
[1735339838514,0.21184492,94505.0,94504.0,0.08977446]
[1735339839711,0.21284492,94505.0,94504.0,0.08977446]
[1735339839919,0.1055106,94505.0,94504.0,0.08977446]
[1735339840924,0.1055106,94505.0,94504.0,0.09190138]
[1735339841622,0.053984,94505.0,94504.0,0.09190138]
[1735339842619,0.1055106,94505.0,94504.0,0.09190138]
[1735339843422,0.1055106,94505.0,94504.0,0.05190138]
[1735339844029,0.1055106,94505.0,94504.0,0.01390138]
[1735339845728,0.1055106,94505.0,94504.0,0.00212692]
[1735339846525,0.4663106,94505.0,94504.0,0.00212692]
[1735339847824,0.4663106,94505.0,94500.0,0.1]
[1735339847825,0.052986,94501.0,94500.0,0.1]
[1735339848928,0.053986,94501.0,94500.0,0.1]
[1735339849524,0.1055126,94501.0,94500.0,0.1]
[1735339851929,0.24296695,94501.0,94485.0,0.0771]
[1735339852223,0.052993,94488.0,94485.0,0.0771]
[1735339852624,0.052994,94487.0,94485.0,0.0771]
[1735339853429,0.17992037,94487.0,94485.0,0.0771]
[1735339854132,0.17992037,94487.0,94485.0,0.08875043]
[1735339854830,0.18092037,94487.0,94485.0,0.08875043]
[1735339855044,0.053994,94487.0,94485.0,0.08875043]
[1735339855722,0.054994,94487.0,94485.0,0.08875043]
[1735339862830,0.054994,94487.0,94485.0,0.04935043]
[1735339863027,0.054994,94487.0,94485.0,0.01165043]
[1735339863225,0.002,94487.0,94477.0,0.052999]
[1735339863430,0.052995,94484.0,94477.0,0.052999]
[1735339864638,0.053995,94484.0,94477.0,0.052999]
[1735339864841,0.12687323,94482.0,94477.0,0.052999]
[1735339865937,0.17987023,94482.0,94479.0,0.05053696]
[1735339866336,0.18087023,94482.0,94479.0,0.05053696]
[1735339866543,0.12687323,94481.0,94479.0,0.05053696]
[1735339868238,0.12787323,94481.0,94479.0,0.05053696]
[1735339868539,0.002,94481.0,94479.0,0.05053696]
[1735339869236,0.054997,94481.0,94479.0,0.05053696]
[1735339873240,0.21365496,94481.0,94479.0,0.05053696]
[1735339876246,0.05154123,94480.0,94479.0,0.05053696]
[1735339877444,0.55124035,94485.0,94479.0,0.05053696]
[1735339877642,0.00158788,94501.0,94479.0,0.05053696]
[1735339877643,0.00158788,94501.0,94484.0,0.3608]
[1735339877945,0.25430888,94502.0,94500.0,0.052986]
[1735339878548,0.07970888,94502.0,94500.0,0.052986]
[1735339878845,0.03790888,94502.0,94500.0,0.052986]
[1735339879144,0.03890888,94502.0,94500.0,0.052986]
[1735339879341,0.12706135,94501.0,94500.0,0.052986]
[1735339879544,0.12706135,94501.0,94500.0,0.06777408]
[1735339880637,0.12706135,94501.0,94500.0,0.06977408]
[1735339880945,0.12706135,94508.0,94500.0,0.01678808]
[1735339881150,0.12706135,94508.0,94507.0,0.3608]
[1735339881647,0.12706135,94509.0,94507.0,0.3608]
[1735339882232,0.001,94508.0,94507.0,0.3608]
[1735339882744,0.12806135,94509.0,94507.0,0.3618]
[1735339882948,0.001,94509.0,94507.0,0.3618]
[1735339883941,0.001,94509.0,94507.0,0.3638]
[1735339884651,0.001,94509.0,94508.0,0.052982]
[1735339884851,0.18003835,94518.0,94508.0,0.052982]
[1735339885151,0.18003835,94518.0,94517.0,0.3608]
[1735339885343,0.052977,94518.0,94517.0,0.3608]
[1735339886044,0.053977,94518.0,94517.0,0.3608]
[1735339887545,0.052977,94518.0,94517.0,0.3618]
[1735339887744,0.12664908,94519.0,94518.0,0.052976]
[1735339888347,0.12664908,94522.0,94517.0,0.3618]
[1735339888548,0.12664908,94522.0,94520.0,0.052975]
[1735339889555,0.052972,94525.0,94520.0,0.052975]
[1735339890742,0.052973,94524.0,94520.0,0.052975]
[1735339891446,0.05456153,94523.0,94520.0,0.052975]
[1735339892143,0.05456153,94523.0,94522.0,0.052974]
[1735339893342,0.05556153,94523.0,94522.0,0.052974]
[1735339896257,0.052976,94520.0,94518.0,0.3608]
[1735339896453,0.00258753,94523.0,94522.0,0.052974]
[1735339897452,0.00158753,94523.0,94522.0,0.052974]
[1735339899547,0.00258753,94523.0,94522.0,0.052974]
[1735339905455,0.052974,94522.0,94518.0,0.3608]
[1735339905663,0.052974,94522.0,94521.0,0.3608]
[1735339907554,0.21180069,94522.0,94521.0,0.3608]
[1735339908962,0.052974,94522.0,94521.0,0.3608]
[1735339912255,0.052975,94521.0,94517.0,0.0145595]
[1735339912456,0.037,94520.0,94516.0,0.052977]
[1735339912852,0.037,94520.0,94519.0,0.3608]
[1735339914852,0.037,94520.0,94517.0,0.001]
[1735339915067,0.037,94520.0,94519.0,0.3608]
[1735339926376,0.037,94520.0,94519.0,0.54958151]
[1735339927577,0.037,94520.0,94519.0,0.3608]
[1735339928975,0.21190821,94521.0,94519.0,0.3608]
[1735339930371,0.15893321,94520.0,94519.0,0.3608]
[1735339931580,0.21190821,94521.0,94519.0,0.3608]
[1735339931775,0.0358,94520.0,94519.0,0.3608]
[1735339932672,0.19473321,94520.0,94519.0,0.3608]
[1735339934777,0.0358,94520.0,94519.0,0.3608]
[1735339934982,0.0358,94520.0,94519.0,0.413776]
[1735339936382,0.0358,94520.0,94519.0,0.052976]
[1735339936573,0.0358,94520.0,94519.0,0.413776]
[1735339937276,0.19470219,94520.0,94519.0,0.413776]
[1735339938985,0.0358,94520.0,94519.0,0.413776]
[1735339941277,0.0358,94520.0,94519.0,0.6035625]
[1735339942480,0.19470387,94520.0,94519.0,0.413776]
[1735339945179,0.19470387,94520.0,94519.0,0.6035625]
[1735339945180,0.0358,94520.0,94519.0,0.6035625]
[1735339947183,0.0358,94520.0,94519.0,0.2427625]
[1735339947387,0.0358,94520.0,94519.0,0.6035625]
[1735339947997,0.0358,94520.0,94519.0,0.413776]
[1735339950290,0.0358,94520.0,94519.0,0.60355949]
[1735339952581,0.0358,94520.0,94519.0,0.413776]
[1735339954493,0.0358,94520.0,94519.0,0.052976]
[1735339954690,0.0358,94520.0,94519.0,0.413776]
[1735339958493,0.0358,94520.0,94519.0,0.60356596]
[1735339958689,0.0358,94520.0,94519.0,0.24276596]
[1735339958893,0.0358,94520.0,94519.0,0.60356596]
[1735339960397,0.0358,94520.0,94519.0,0.24276596]
[1735339960689,0.0358,94520.0,94519.0,0.60356596]
[1735339961494,0.0358,94520.0,94519.0,0.413776]
[1735339963793,0.19475622,94520.0,94519.0,0.052976]
[1735339964001,0.19475622,94520.0,94519.0,0.413776]
[1735339971214,0.19475622,94520.0,94519.0,0.052976]
[1735339971409,0.19475622,94520.0,94519.0,0.413776]
[1735339971715,0.0358,94520.0,94519.0,0.413776]
[1735339976608,0.0358,94520.0,94519.0,0.60366482]
[1735339978402,0.0358,94520.0,94519.0,0.24286482]
[1735339978607,0.0358,94520.0,94519.0,0.60366482]
[1735339978805,0.0358,94520.0,94519.0,0.413776]
[1735339981115,0.0358,94520.0,94519.0,0.3026]
[1735339981411,0.0358,94520.0,94517.0,0.25298956]
[1735339981412,0.052976,94519.0,94517.0,0.25298956]
[1735339982511,0.052976,94519.0,94517.0,0.13898956]
[1735339982821,0.05298,94512.0,94509.0,0.18995049]
[1735339983021,0.07050968,94519.0,94517.0,0.001]
[1735339983215,0.052976,94518.0,94517.0,0.001]
[1735339983810,0.41048307,94520.0,94509.0,0.18995049]
[1735339984017,0.001,94512.0,94509.0,0.002]
[1735339984624,0.001,94512.0,94505.0,0.20421749]
[1735339984625,0.052979,94513.0,94505.0,0.20421749]
[1735339985114,0.052979,94513.0,94505.0,0.014267]
[1735339985307,0.15881017,94511.0,94504.0,0.18995049]
[1735339985808,0.15881017,94511.0,94504.0,0.2041068]
[1735339986413,0.12702722,94505.0,94504.0,0.2041068]
[1735339986820,0.12502722,94505.0,94504.0,0.2041068]
[1735339987612,0.12502722,94505.0,94504.0,0.2061068]
[1735339987819,0.052984,94505.0,94504.0,0.01615631]
[1735339988115,0.053984,94505.0,94504.0,0.01615631]
[1735339990405,0.21267871,94505.0,94504.0,0.01615631]
[1735339991113,0.21167871,94505.0,94504.0,0.01415631]
[1735339991421,0.21167871,94505.0,94500.0,0.00158707]
[1735339991917,0.052984,94505.0,94500.0,0.00158707]
[1735339993024,0.00840673,94504.0,94500.0,0.00158707]
[1735339993306,0.052984,94505.0,94500.0,0.01551624]
[1735339993307,0.00840673,94503.0,94500.0,0.01551624]
[1735339993513,0.00840654,94502.0,94500.0,0.01551624]
[1735339993722,0.00840654,94501.0,94500.0,0.00158707]
[1735339995120,0.00940654,94501.0,94500.0,0.00158707]
[1735339995320,0.002,94501.0,94500.0,0.00158707]
[1735339995511,0.37121711,94501.0,94500.0,0.00158707]
[1735339995711,0.37221711,94501.0,94500.0,0.00158707]
[1735339995914,0.0114349,94501.0,94500.0,0.00158707]
[1735339996313,0.3722349,94501.0,94500.0,0.00158707]
[1735339996714,0.3722349,94501.0,94500.0,0.01482927]
[1735339997023,0.3722349,94501.0,94500.0,0.00158707]
[1735339997213,0.3702349,94501.0,94500.0,0.00158707]
[1735339997413,0.3722349,94501.0,94500.0,0.00158707]
[1735339997609,0.3712349,94501.0,94500.0,0.00158707]
[1735339997821,0.3752349,94501.0,94500.0,0.00158707]
[1735339999220,0.3752349,94501.0,94493.0,0.01257464]
[1735339999423,0.0084349,94500.0,94492.0,0.3608]
[1735339999627,0.0084349,94499.0,94485.0,0.18995049]
[1735339999921,0.052994,94487.0,94485.0,0.18995049]
[1735340000126,0.0084349,94486.0,94485.0,0.20301738]
[1735340000316,0.0084349,94486.0,94485.0,0.01306689]
[1735340000620,0.052995,94485.0,94484.0,0.18995049]
[1735340000821,0.0614299,94485.0,94484.0,0.18995049]
[1735340002222,0.052996,94484.0,94475.0,0.01776037]
[1735340002518,0.0084349,94483.0,94475.0,0.01776037]
[1735340002724,0.052997,94481.0,94475.0,0.01776037]
[1735340002921,0.0084349,94480.0,94475.0,0.01776037]
[1735340003119,0.0084349,94479.0,94475.0,0.01776037]
[1735340003427,0.0084349,94478.0,94475.0,0.01776037]
[1735340003633,0.0084349,94477.0,94475.0,0.01776037]
[1735340003923,0.0084349,94476.0,94475.0,0.01776037]
[1735340005124,0.001,94476.0,94475.0,0.01776037]
[1735340005923,0.001,94476.0,94475.0,0.01260197]
[1735340006128,0.001,94476.0,94473.0,0.413801]
[1735340008123,0.001,94476.0,94473.0,0.42628936]
[1735340013432,0.001,94476.0,94473.0,0.06548936]
[1735340015237,0.0951264,94474.0,94473.0,0.06548936]
[1735340016325,0.0961264,94476.0,94473.0,0.06548936]
[1735340016832,0.001,94474.0,94473.0,0.06548936]
[1735340017330,0.0951264,94476.0,94473.0,0.06548936]
[1735340017629,0.0951264,94475.0,94473.0,0.06548936]
[1735340018032,0.001,94474.0,94473.0,0.06548936]
[1735340018627,0.0951264,94475.0,94473.0,0.06548936]
[1735340019428,0.3608,94475.0,94473.0,0.06548936]
[1735340020734,0.001,94474.0,94473.0,0.06548936]
[1735340021336,0.3618,94475.0,94473.0,0.06548936]
[1735340022840,0.3608,94475.0,94473.0,0.06548936]